Cogmind - Beta 17 @@@ ROGUE MODE // 2026.07.15 @ 09:39:39 Player: 3.14 Result: Destroyed by S-10 Pest with Light Assault Rifle Performance ------------- Evolutions (2) 1000 Regions Visited (3) 600 Robots Destroyed (30) 150 Value Destroyed (808) 808 Prototype IDs (4) 80 Alien Tech Used (0) 0 Bonus (0) 0 TOTAL SCORE: 2638 Bonus ------- None Cogmind --------- Core Integrity 0/550 Matter 300/300 Energy 100/100 System Corruption 0% Temperature Cool (9) Movement Core (50) Location -8/Materials Parts ------- > --- POWER (1) -------- (None) > --- PROPULSION (4) --- (None) > --- UTILITY (4) ------ (None) > --- WEAPON (2) ------- (None) > --- INVENTORY (5) ---- Improved Treads Subdweller Laser EM Pulse Cannon Heavy Assault Rifle Light Cannon Peak State ------------ > --- POWER ------------ Light Ion Engine > --- PROPULSION ------- Light Treads Improved Treads Improved Treads Improved Treads > --- UTILITY ---------- Heat Sink High-capacity Storage Unit Transport Network Coupler Light Armor Plating > --- WEAPON ----------- Advanced Beam Cannon Minigun > --- INVENTORY -------- Light Ion Engine Improved Treads Cooling System Visual Processing Unit Seismic Detector Seismic Detector Subdweller Laser Subdweller Laser EM Pulse Cannon Advanced Beam Cannon Light Assault Rifle Subdweller Machine Gun Light Cannon Light Cannon Light Cannon Light Cannon Light Cannon Light Cannon Datajack Mining Laser [Rating: 21] Favorites ----------- Power Light Ion Engine Engine Light Ion Engine Propulsion Improved Treads Treads Improved Treads Utility High-capacity Storage Unit Device Seismic Detector Storage High-capacity Storage Unit Processor Transport Network Coupler Protection Light Armor Plating Weapon Subdweller Laser Energy Gun Subdweller Laser Energy Cannon Advanced Beam Cannon Ballistic Gun Subdweller Machine Gun Ballistic Cannon Light Cannon Special Weapon Mining Laser Build | -11 -10 -10 -8 ------- Run | Yrd Mat Sub Mat Slots Evolved 4 | . . . 4 Power . | . . . . Propulsion 2 | . . . 2 Utility 2 | . . . 2 Weapon . | . . . . Parts Attached 33 | 8 4 8 13 Power 4 | 1 . 1 2 Engine 4 | 1 . 1 2 Core . | . . . . Reactor . | . . . . Propulsion 7 | 2 . 2 3 Treads 7 | 2 . 2 3 Leg . | . . . . Wheel . | . . . . Hover . | . . . . Flight . | . . . . Utility 8 | 2 1 1 4 Device 4 | 1 . . 3 Storage 2 | 1 1 . . Processor 1 | . . . 1 Hackware . | . . . . Protection 1 | . . 1 . Artifact . | . . . . Weapon 14 | 3 3 4 4 Energy Gun 4 | 2 1 1 . Energy Cannon 3 | . . . 3 Ballistic Gun 4 | 1 1 1 1 Ballistic Cannon 2 | . 1 1 . Launcher . | . . . . Special Weapon 1 | . . 1 . Impact Weapon . | . . . . Slashing Weapon . | . . . . Piercing Weapon . | . . . . Special Melee Weapon . | . . . . Unidentified Prototypes 1 | . . . 1 Parts Lost 15 | . . 4 11 Power 4 | . . 2 2 Propulsion 6 | . . 2 4 Utility 3 | . . . 3 Weapon 2 | . . . 2 Highest Loss Streak 8 | . . 2 8 To Critical Strikes . | . . . . Average Backups 16 | 3 13 19 16 Power . | . 1 . . Propulsion 2 | 1 2 2 . Utility 3 | . 3 4 3 Weapon 9 | 1 5 11 12 Tool/Special . | . . . . Unused Backups 17 | . 3 . 14 Power . | . . . . Propulsion 3 | . 2 . 1 Utility 1 | . . . 1 Weapon 12 | . 1 . 11 Tool/Special 1 | . . . 1 Average Slot Usage (%) 95 | . 99 97 84 Engine 11 | . 14 12 7 Treads 28 | . 28 28 32 Device 12 | . 14 12 8 Storage 12 | . 14 14 8 Protection 2 | . . 1 6 Energy Gun 10 | . 9 13 3 Energy Cannon 1 | . . . 6 Ballistic Gun 11 | . 13 12 6 Ballistic Cannon 2 | . 3 2 . Peak Build Rating 21 | 7 10 12 21 Average Rating 11 | 5 8 11 17 On Entrance 7 | . 7 9 12 Avg Prop Armor Cover (%) . | . . . . Naked Turns 36 | . . . 36 Heaviest Build 56 | 11 48 52 56 Greatest Support 92 | 40 40 46 92 Greatest Overweight (x) 1 | . 1 1 1 Average Overweight (x) . | . . 1 . Largest Inventory Capacity 20 | 8 20 20 20 Average Capacity 18 | 7 19 20 18 Most Carried 20 | 6 20 20 20 Average Carried 16 | 3 13 19 16 Final Capacity 20 | 8 20 20 5 Final Carried 20 | 6 20 19 5 Class Distribution -------------------- 97% | Mutant Dominant Class ---------------- Mutant | -10/Materials Mutant | -10/Subcaves Mutant | -8/Materials Resources | -11 -10 -10 -8 ----------- Run | Yrd Mat Sub Mat Matter Collected 733 | 282 45 193 213 Remotely 10 | . . . 10 Salvage Created 1153 | 116 257 214 566 Parts 80 | 8 17 25 30 Haulers Intercepted 1 | . . . 1 Recyclers Shooed 2 | . . . 2 Parts Field Recycled . | . . . . Retrieved Matter . | . . . . Parts Self-Destructed 14 | . . 14 . Prevented . | . . . . Parts Restored . | . . . . Kills | -11 -10 -10 -8 ------- Run | Yrd Mat Sub Mat Combat Hostiles Destroyed 22 | . 6 8 8 Guns 13 | . 6 6 1 Cannons 8 | . . 2 6 Classes Destroyed 10 | 2 2 3 3 Worker 1 | . . . 1 Tunneler 3 | 3 . . . Hauler 1 | . . . 1 Recycler 3 | 1 1 . 1 Swarmer 6 | . 3 3 . Grunt 8 | . 3 . 5 Sentry 3 | . . 1 2 Heavy 1 | . . . 1 Artisan 1 | . . 1 . Subdweller 4 | . . 4 . Best Kill Streak 6 | 2 3 3 6 Combat Bots Only 3 | . 3 3 3 Max Kills in Single Turn 2 | 1 2 1 1 Gunslinging . | . . . . Exploded . | . . . . Melee . | . . . . Uniques/NPCs Destroyed . | . . . . Combat | -11 -10 -10 -8 -------- Run | Yrd Mat Sub Mat Hostile Shots Fired 245 | . 39 72 134 Missed 61 | . 9 25 27 Hits 184 | . 30 47 107 Projectile 184 | . 30 47 107 Critical Strikes 6 | . 1 1 4 Damage Taken 2766 | . 281 768 1717 Core 735 | . 35 143 557 Absorbed by Shields . | . . . . Core Remaining (%) 64 | 100 . 28 . Volleys Fired 116 | 11 25 37 43 Largest 2 | 2 2 2 2 Hottest 136 | 60 85 100 136 Shots Fired 228 | 22 49 73 84 Gun 146 | 22 49 55 20 Cannon 81 | . . 17 64 Launcher . | . . . . Special 1 | . . 1 . Kinetic 100 | 11 25 46 18 Thermal 128 | 11 24 27 66 Explosive . | . . . . Electromagnetic . | . . . . Robot Hit Streak 15 | 6 12 8 15 Robot Miss Streak 4 | 3 4 2 2 Penetration Max . | . . . . Secondary Targets 1 | . . 1 . Max Gunslinging Chain 1 | . . 1 . Shots Hit Robots 159 | 13 30 52 64 Core Hits 54 | 7 15 14 18 Critical Kills 3 | 1 . 1 1 Critical Parts Destroyed . | . . . . Critical Strikes 4 | 1 . 2 1 Meltdown 1 | . . . 1 Destroy 3 | 1 . 2 . Melee Attacks . | . . . . Impact . | . . . . Slashing . | . . . . Piercing . | . . . . Sneak Attacks . | . . . . Combat Hostiles . | . . . . Follow-up Attacks . | . . . . Damage Inflicted 2777 | 119 314 887 1457 Guns 1341 | 115 314 652 260 Cannons 1406 | . . 235 1171 Explosions . | . . . . Melee . | . . . . Ramming 30 | 4 . . 26 Kinetic 1051 | 60 147 604 240 Thermal 1696 | 55 167 283 1191 Explosive . | . . . . Electromagnetic . | . . . . Impact . | . . . . Slashing . | . . . . Piercing . | . . . . Highest Corruption 1 | . 1 1 . Average Corruption 1 | . 1 1 . Corruption Purged . | . . . . Corruption Blocked . | . . . . Effects 12 | . 2 10 . Message Errors 4 | . . 4 . Matter Fused 3 | . . 3 . Heat Flow Errors 1 | . . 1 . Parts Fused 1 | . . 1 . Data Loss (minor) 3 | . 2 1 . Overload Shots . | . . . . Overflow Damage . | . . . . Projectiles . | . . . . Explosions . | . . . . Melee . | . . . . Knockbacks 4 | . . 4 . Impact . | . . . . Kinetic 4 | . . 4 . Secondary . | . . . . Self-Inflicted Damage . | . . . . Shots . | . . . . Rammed 4 | 2 . . 2 Targets Rammed 4 | 2 . . 2 Kicked . | . . . . Crushed . | . . . . Highest Temperature 350 | 40 256 113 350 Average Temperature 88 | 21 88 42 107 Received Heat Transfer 693 | . 69 138 486 Siege Activations . | . . . . Martial Activations . | . . . . Shielding Activations . | . . . . Robots Disrupted . | . . . . Combat Hostiles . | . . . . Robots Corrupted . | . . . . Combat Hostiles . | . . . . Parts Fried . | . . . . Impact Corruptions . | . . . . Robots Melted 1 | . . . 1 Combat Hostiles 1 | . . . 1 Parts Melted 4 | . . . 4 Heat Transferred 2994 | 125 385 350 2134 Parts Sabotaged . | . . . . Parts Stolen . | . . . . Parts Stripped . | . . . . Power Chain Reactions . | . . . . Alert | -11 -10 -10 -8 ------- Run | Yrd Mat Sub Mat Maximum Alert Level . | . . . . Low Security (%) 100 | 100 100 . 100 Level 1 . | . . . . Level 2 . | . . . . Level 3 . | . . . . Level 4 . | . . . . Level 5 . | . . . . High Security . | . . . . Max Security . | . . . . Peak Influence 97 | 5 60 . 97 Initial 21 | . . . 21 Average 16 | 1 17 . 19 Influence Increases 522 | 20 160 110 232 Destroy 0b10 Robot/C 360 | . 120 80 160 Destroy 0b10 Robot/NC 40 | 20 5 . 15 Destroy Leader 72 | . 30 . 42 Successful Hack 19 | . 5 . 14 Destroy Structure 1 | . . . 1 Lose Combat Pursuer 30 | . . 30 . Influence Decreases 512 | 20 160 68 264 Entered New Map 21 | . . . 21 Time Decay 361 | 20 160 48 133 Lost Part 130 | . . 20 110 Squads Dispatched 6 | . 2 . 4 Investigation . | . . . . Extermination . | . . . . Reinforcement 4 | . 2 . 2 Assault . | . . . . Garrison 2 | . . . 2 Intercept . | . . . . Searches Triggered . | . . . . Construction Impeded . | . . . . Haulers Reinforced . | . . . . Active Scanning Responses . | . . . . Cargo Convoy Interrupts . | . . . . Stealth | -11 -10 -10 -8 --------- Run | Yrd Mat Sub Mat Distress Signals 2 | . 1 . 1 Communications Jammed . | . . . . Distress Signals . | . . . . Times Spotted 34 | . 9 12 13 Peak Tracking Total 6 | . 4 6 4 Tactical Retreats 1 | . . 1 . Traps | -11 -10 -10 -8 ------- Run | Yrd Mat Sub Mat Traps Triggered 1 | . 1 . . Indirectly . | . . . . Trap Hack Attempts . | . . . . Triggered . | . . . . Disarmed . | . . . . Reprogrammed . | . . . . Reused . | . . . . Traps Extracted . | . . . . Installed . | . . . . Triggered . | . . . . Machines | -11 -10 -10 -8 ---------- Run | Yrd Mat Sub Mat Machines Disabled . | . . . . Max in Single Turn . | . . . . Machines Repaired . | . . . . Machines Dismantled . | . . . . Machines Sabotaged . | . . . . Overloaded Fab Kills . | . . . . Hacking | -11 -10 -10 -8 --------- Run | Yrd Mat Sub Mat Machines Accessed 4 | . 2 1 1 Terminals 3 | . 2 . 1 Fabricators . | . . . . Repair Stations . | . . . . Recycling Units . | . . . . Scanalyzers . | . . . . Garrison Access . | . . . . Total Hacks 11 | . 6 3 2 Successful 7 | . 3 3 1 Failed 4 | . 3 . 1 Catastrophic 1 | . 1 . . Database Lockouts . | . . . . Manual 5 | . 4 . 1 Terminals 8 | . 6 . 2 Fabricators . | . . . . Repair Stations . | . . . . Recycling Units . | . . . . Scanalyzers . | . . . . Garrison Access . | . . . . Terminal Hacks 5 | . 2 3 . Record 3 | . . 3 . Prototype ID Bank 2 | . 2 . . Fabricator Hacks . | . . . . Repair Station Hacks . | . . . . Recycling Unit Hacks . | . . . . Scanalyzer . | . . . . Garrison Access Hacks . | . . . . Unauthorized Hacks 2 | . 1 . 1 Terminals 2 | . 1 . 1 Skim 2 | . 1 . 1 Fabricators . | . . . . Repair Stations . | . . . . Recycling Units . | . . . . Scanalyzers . | . . . . Garrison Access . | . . . . Data Cores Recovered . | . . . . Used . | . . . . Hacking Detections 3 | . 2 . 1 Full Trace Events . | . . . . Feedback Events . | . . . . Feedback Blocked . | . . . . Robot Schematics Acquired . | . . . . Robots Built . | . . . . Authchips . | . . . . Time . | . . . . Total Robot Build Rating . | . . . . Part Schematics Acquired . | . . . . Parts Built . | . . . . Authchips . | . . . . Time . | . . . . Total Part Build Rating . | . . . . Part Studies Acquired . | . . . . Parts Repaired . | . . . . Time . | . . . . Parts Recycled . | . . . . Recycled Matter . | . . . . Retrieved Matter . | . . . . Retrieved Components . | . . . . Parts Scanalyzed . | . . . . Part Schematics Acquired . | . . . . Parts Damaged . | . . . . Bothacking | -11 -10 -10 -8 ------------ Run | Yrd Mat Sub Mat Used RIF Installer . | . . . . Robots Hacked . | . . . . Non-combat . | . . . . Combat . | . . . . Robot Hacks Applied . | . . . . Relay Couplers Released . | . . . . Fabnet Peak Effective % . | . . . . Robots Rewired . | . . . . Allies Hacked . | . . . . Hacks Repelled . | . . . . Allies | -11 -10 -10 -8 -------- Run | Yrd Mat Sub Mat Total Allies . | . . . . Largest Group . | . . . . Highest-Rated Group . | . . . . Highest-Rated Ally . | . . . . Total Orders . | . . . . Ally Attacks . | . . . . Total Damage . | . . . . Kills . | . . . . Allies Corrupted . | . . . . Allies Melted . | . . . . Intel | -11 -10 -10 -8 ------- Run | Yrd Mat Sub Mat Active Infowar (turns) 2173 | 66 570 1312 225 Seismic 1948 | 66 570 1312 . T.N.C. 225 | . . . 225 Robot Analysis Total . | . . . . Derelict Logs Recovered 2 | . . 2 . Drone Launches . | . . . . Drone Recoveries . | . . . . Exploration | -11 -10 -10 -8 ------------- Run | Yrd Mat Sub Mat Turns Passed 2708 | 171 570 1487 480 Spaces Moved 986 | 76 171 564 175 Core 1 | 1 . . . Treads 985 | 75 171 564 175 Legs . | . . . . Wheels . | . . . . Hover . | . . . . Flight . | . . . . Fastest Speed 50 | 50 160 240 160 Average Speed 218 | 158 234 240 160 Slowest Speed 240 | 160 240 240 240 Overloaded Moves . | . . . . Propulsion Burnouts . | . . . . Robots Hopped . | . . . . Potential Cave-ins . | . . . . Cave-ins Triggered . | . . . . Exploration Rate (%) 24 | 3 38 45 12 Regions Visited 3 Branch Regions 1 Pre-discovered Areas . | . . . . Known Exits Taken . | . . . . Unknown Exits Taken 3 | 1 1 1 . Scrap Searched . | . . . . Spaces Dug . | . . . . Terrain Destroyed 1 | . . . 1 Melee . | . . . . Projectile 1 | . . . 1 AOE . | . . . . Terrain Rammed . | . . . . Walls Destroyed . | . . . . Machines Disabled . | . . . . Actions | -11 -10 -10 -8 --------- Run | Yrd Mat Sub Mat Total 1318 | 102 300 624 292 Wait 123 | . 74 9 40 Move 983 | 75 170 563 175 Hop . | . . . . Pick Up 41 | 6 20 4 11 Fast Attach 10 | 7 . . 3 Attach 12 | . 2 4 6 Detach . | . . . . Swap 13 | 1 2 5 5 Drop 16 | . 7 2 7 Fire 116 | 11 25 37 43 Melee . | . . . . Ram . | . . . . Kick . | . . . . Crush 4 | 2 . . 2 Escape Stasis . | . . . . Rewire . | . . . . Trap . | . . . . Miscellaneous . | . . . . Route ------- -11/Scrapyard -10/Materials (discovered 2 exits: [*Min] / *Sub) -10/Subcaves (discovered 3 exits: *Mat x2 / *Rec) -8/Materials (discovered 2 exits: Fac x2) History --------- Turn | Location | Event 18 | -11/Scrapyard | Discovered new exit (range 16) 172 | -11/Scrapyard | Entered Materials 213 | -10/Materials | Discovered new exit (range 15) 307 | -10/Materials | Build established: Mutant 713 | -10/Materials | Discovered new exit (range 9) 742 | -10/Materials | Entered Subcaves 746 | -10/Subcaves | Ambushed by Subdwellers from Twisted Machinery 747 | -10/Subcaves | Learned Materials interactive machine intel 779 | -10/Subcaves | A swath of the cavern ceiling suddenly collapsed 861 | -10/Subcaves | Discovered new exit (range 6) 880 | -10/Subcaves | Discovered new exit (range 12) 1681 | -10/Subcaves | Ambushed by angry Subdweller bent on revenge 1684 | -10/Subcaves | Core integrity fell below 50% 1870 | -10/Subcaves | Visited Clippyterm 1877 | -10/Subcaves | Identified exit to Recycling 1901 | -10/Subcaves | Learned 2 Materials zone layouts 2229 | -10/Subcaves | Entered Materials 2229 | -8/Materials | Evolved 4 slots: Propulsion x2, Utility x2 2230 | -8/Materials | Identified exit to Factory 2231 | -8/Materials | Loaded intel: 19 interactive machine locations 2599 | -8/Materials | Garrison activated, responded to threat 2638 | -8/Materials | Lost 3 parts (1p2u) 2673 | -8/Materials | Released all parts (5) 2686 | -8/Materials | Core integrity fell below 50% 2704 | -8/Materials | Lost 8 parts (1p4n1u2w) 2705 | -8/Materials | Core integrity fell below 20% 2709 | -8/Materials | Destroyed by S-10 Pest with Light Assault Rifle Last Messages --------------- 02658_ K-01 Serf destroyed. 02658_ Penetrated by Slug. 02664_ Slug penetrates Wall. 02664_ Adv. Beam Cannon destroyed. 02668_ H-55 Commando heat spikes uncontrollably. 02670_ H-55 Commando heat short circuits Gauss Rifle. 02670_ Imp. Treads destroyed. 02671_ H-55 Commando heat damages Targeting Computer. 02673_ Released Tractor Beam. 02673_ Released Hcp. Storage Unit. 02673_ Seismic Detector crushed and broken. 02673_ Lgt. Cannon crushed and broken. 02673_ Released Adv. Beam Cannon. 02673_ Adv. Beam Cannon crushed and broken. 02673_ Released Transport Network Coupler. 02673_ Released Heat Sink. 02673_ Heat Sink crushed and broken. 02676_ H-55 Commando destroyed. 02690_ R-06 Scavenger collects Visual Processing Unit. 02693_ R-06 Scavenger collects Graphene Brace. Map ----- +----------------------------------------------------+ | ????????????????????????# # ???????????????????? | | ????????????????????????# < # ???????????????????? | | ????????????????????????# # ???????????????????? | | ????????????????????????# + ???????????????????? | | ????????????????????????# # ???????????????????? | | ????????????????????????# # ???????????????????? | | ????????????????????##### ##???????????????????? | | ????????????????????# #????????????????????? | | ??????????#######???# #????????????????????? | | ??????????# #???# #????????????????????? | | ??????????#""" #???# #????????????????????? | | ??????????#""" #???# ##???????????????????? | | ??????????#""" #???# ##???????????????????? | | ??????????# #???##### ##???????????????????? | | ??????????# #??????# #???????????????????? | | ???????????????????????? #???????????????????? | | ???????????????????????? +???????????????????? | | ?"T"???????????????????? ????????????????????? | | ???????????????????????? !! ????????????????????? | | ????????????????????????#ss=#????????????????????? | | ????""??????????????????#!%!#????????????????????? | | ????Y"??????????????????#=!]#????????????????????? | | ????""??????????????????#!*=#????????????????????? | | ????????????????????????#*Y%#????????????????????? | | ?????????????#######???##=!%#????????????????????? | | ???"?"???????# ??##@!%##?????#?????????????? | | ???"G"?????????T ! ?#%=[!=##### ######????????? | | ???"""?????????? #![%=]u ????????? | | ?????????????????? """ +=][!| #????????????? | | ???????????????????????#][[ #????????????? | | ???????????????????????# / #### #????????????? | | ???????????????????????###%###???? #????????????? | | ?????????????????????????# #????????#?????????T??? | | ?????????????????????????# #?????????????????????? | | ?????????????????????????#%#?????????????????????? | | ?????????????????????????# #?????????????????????? | | ?????????????????????????# #?????????????????????? | | ?????????????????????????# #?????????????????????? | | ?????????????????????????# #?????????????????????? | | ?????????????????????????# #?????????????????????? | | ??????????????????########%#?????????????????????? | | ??????????????????# #%#?????????????????????? | | ??????????????????# *! !# #?????????????????????? | | ??????????????????#* ! + #?????????????????????? | | ??????????????????#** ] # #?????????????????????? | | ??????????????????# !# #?????????????????????? | | ??????????????????# # #?????????????????????? | | ??????????????????######## #?????????????????????? | | ??????????????????# + #?????????????????????? | | ??????????????????# # #?????????????????????? | +----------------------------------------------------+ Best States ------------- Heat Dissipation 53 Energy Generation 10 Energy Capacity 125 Matter Stores 300 Matter Capacity 300 Sight Range 16 Terrain Scan Density 10 Armor Coverage 150 Evasion (%) 40 Recoil Reduction 4 Item Schematics ----------------- None Robot Schematics ------------------ None Fabricated ------------ Nothing Repaired ---------- Nothing Studied --------- None Alien Tech Used ----------------- None Achievements -------------- None Challenges ------------ None Game ------ Seed SpliceElectronMapper Manual? 0 Play Time 00:14:11 Cumulative 976.8 hours Start 2026.07.15 @ 09:28:46 End 2026.07.15 @ 09:39:39 Sessions 1 Manual Loads 0 Difficulty Rogue Special Mode None Game No. 1662 Rogue 1662 Adventurer 0 Explorer 0 Win Type - Total 95 Types 56/1/16/16/4/0/0/1/0/1 Lore% 93 Gallery% 80 Achievement% 69 Wizard Run 0 Options --------- Layout 0 ASCII 1 Keyboard 0 Movement Numpad Keybinds 1 Fullscreen 2 Font 18/SmallcapsGlow Map View 76x50 Zoom Use 0% Tactical HUD 1 Map Filters NONE Filters NONE Steam 1 RUN: ab8a1825-1ef5-402f-bd4f-675505b7243f